fUSD/lending_fUSD_20240425
["ID","MTS","AMOUNT","RATE_DAILY","PERIOD"]
[323495277,1714051853236,-500.0,0.0001299,2]
[323495278,1714051853248,-2301.89,0.0001299,2]
[323495279,1714051853258,-3363.14,0.0001299,2]
[323495280,1714051853269,-500.0,0.0001299,2]
[323495281,1714051853279,-500.0,0.0001299,2]
[323495282,1714051853288,-500.0,0.0001299,2]
[323495283,1714051853298,-500.0,0.0001299,2]
[323495284,1714051853309,-1594.45,0.0001299,2]
[323495285,1714051853319,-500.0,0.0001299,2]
[323495286,1714051853329,-500.0,0.0001299,2]
[323495287,1714051853338,-500.0,0.0001299,2]
[323495288,1714051853348,-2807.99,0.0001299,2]
[323495289,1714051853358,-500.0,0.0001299,2]
[323495290,1714051853368,-500.0,0.0001299,2]
[323495291,1714051853379,-4961.15,0.0001299,2]
[323495292,1714051853389,-500.0,0.0001299,2]
[323495293,1714051853399,-500.0,0.0001299,2]
[323495294,1714051853409,-500.0,0.0001299,2]
[323495295,1714051853419,-215.41388575,0.0001299,2]
[323495296,1714051853429,-500.0,0.0001299,2]
[323495297,1714051853438,-500.0,0.0001299,2]
[323495298,1714051853448,-15868.27,0.0001299,2]
[323495299,1714051853458,-500.0,0.0001299,2]
[323495300,1714051853467,-500.0,0.0001299,2]
[323495301,1714051853477,-500.0,0.0001299,2]
[323495302,1714051853486,-1761.87,0.0001299,2]
[323495303,1714051853500,-516.19,0.0001299,2]
[323495304,1714051853510,-304.97901686,0.0001299,2]
[323495305,1714051853520,-500.0,0.0001299,2]
[323495306,1714051853530,-500.0,0.0001299,2]
[323495307,1714051853539,-500.0,0.0001299,2]
[323495308,1714051853548,-500.0,0.0001299,2]
[323495309,1714051853559,-500.0,0.0001299,2]
[323495310,1714051853571,-500.0,0.0001299,2]
[323495311,1714051853581,-500.0,0.0001299,2]
[323495312,1714051853590,-500.0,0.0001299,2]
[323495313,1714051853599,-500.0,0.0001299,2]
[323495314,1714051853609,-500.0,0.0001299,2]
[323495315,1714051853619,-500.0,0.0001299,2]
[323495316,1714051853629,-500.0,0.0001299,2]
[323495317,1714051853640,-500.0,0.0001299,2]
[323495318,1714051853649,-500.0,0.0001299,2]
[323495319,1714051853659,-1059.46903226,0.00012991,3]
[323495320,1714051853668,-151.0,0.00012991,2]
[323495321,1714051853677,-151.0,0.00012991,2]
[323495322,1714051853686,-151.0,0.00012991,2]
[323495323,1714051853695,-288.079571,0.00012991,2]
[323495324,1714051853704,-1786.6622995,0.00012991,2]
[323495325,1714051853713,-2297.1372422,0.00012991,2]
[323495326,1714051853722,-2807.6121849,0.00012991,2]
[323495327,1714051853732,-3318.0871276,0.00012991,2]
[323495328,1714051853741,-3828.5620704,0.00012991,2]
[323495329,1714051853753,-11398.3314381,0.00012991,2]
[323495330,1714051853762,-14654.9975633,0.00012991,2]
[323495331,1714051853772,-17911.6636885,0.00012991,2]
[323495332,1714051853781,-21168.3298137,0.00012991,2]
[323495333,1714051853791,-24424.9959389,0.00012991,2]
[323495334,1714051853801,-1693.452802,0.00012991,2]
[323495335,1714051853810,-2177.2964597,0.00012991,2]
[323495336,1714051853819,-2661.1401174,0.00012991,2]
[323495337,1714051853829,-3144.9837751,0.00012991,2]
[323495338,1714051853838,-3628.8274328,0.00012991,2]
[323495339,1714051853847,-500.0,0.00012991,2]
[323495340,1714051853858,-15561.2193279,0.00012991,2]
[323495341,1714051853867,-20007.281993,0.00012991,2]
[323495342,1714051853877,-24453.3446582,0.00012991,2]
[323495343,1714051853886,-28899.4073233,0.00012991,2]
[323495344,1714051853895,-33345.4699884,0.00012991,2]
[323495345,1714051853904,-12433.98,0.00012991,2]
[323495346,1714051853913,-986.8997671,0.00012991,2]
[323495347,1714051853923,-1268.8711292,0.00012991,2]
[323495348,1714051853932,-1550.8424912,0.00012991,2]
[323495349,1714051853941,-1832.8138533,0.00012991,2]
[323495350,1714051853949,-2114.7852153,0.00012991,2]
[323495351,1714051853959,-2247.22,0.00012991,2]
[323495352,1714051853968,-233.425575,0.00012991,2]
[323495353,1714051853976,-233.425575,0.00012991,2]
[323495354,1714051853985,-2802.1497457,0.00012991,2]
[323495355,1714051853995,-3602.7639588,0.00012991,2]
[323495356,1714051854007,-4403.3781719,0.00012991,2]
[323495357,1714051854016,-5203.9923849,0.00012991,2]
[323495358,1714051854025,-6004.606598,0.00012991,2]
[323495359,1714051854034,-233.425575,0.00012991,2]
[323495360,1714051854043,-233.425575,0.00012991,2]
[323495361,1714051854052,-937.02,0.00012991,2]
[323495362,1714051854062,-13187.340783,0.00012991,2]
[323495363,1714051854071,-16955.1524353,0.00012991,2]
[323495364,1714051854080,-20722.9640876,0.00012991,2]
[323495365,1714051854089,-24490.7757399,0.00012991,2]
[323495366,1714051854098,-28258.5873923,0.00012991,2]
[323495367,1714051854107,-500.0,0.00012991,2]
[323495368,1714051854116,-4195.25,0.00012991,2]
[323495369,1714051854125,-500.0,0.00012991,2]
[323495370,1714051854134,-405.08839472,0.00012991,2]
[323495371,1714051854144,-500.0,0.00012991,2]
[323495372,1714051854153,-500.0,0.00012991,2]
[323495373,1714051854162,-1853.38,0.00012991,2]
[323495374,1714051854171,-1778.37,0.00012991,2]
[323495375,1714051854180,-500.0,0.00012991,2]
[323495376,1714051854189,-1393.6833622,0.00012991,2]
[323495377,1714051854199,-1777.0289723,0.00012991,2]
[323495378,1714051854208,-2160.3745824,0.00012991,2]
[323495379,1714051854217,-2543.7201925,0.00012991,2]
[323495380,1714051854226,-2927.0658026,0.00012991,2]
[323495381,1714051854235,-3213.32,0.00012991,2]
[323495382,1714051854244,-500.0,0.00012991,2]
[323495383,1714051854256,-500.0,0.00012991,2]
[323495384,1714051854266,-528.73,0.00012991,2]
[323495385,1714051854277,-500.0,0.00012991,2]
[323495386,1714051854286,-534.63,0.00012991,2]
[323495387,1714051854295,-151.0,0.00012991,2]
[323495388,1714051854304,-151.0,0.00012991,2]
[323495389,1714051854313,-500.0,0.00012991,2]
[323495390,1714051854322,-500.0,0.00012991,2]
[323495391,1714051854331,-2293.65,0.00012991,2]
[323495392,1714051854340,-569.64,0.00012991,2]
[323495393,1714051854349,-500.0,0.00012991,2]
[323495394,1714051854358,-1289.68,0.00012991,2]
[323495395,1714051854367,-500.0,0.00012991,2]
[323495396,1714051854377,-1830.7190521,0.00012991,2]
[323495397,1714051854386,-2334.2754057,0.00012991,2]
[323495398,1714051854395,-2837.8317593,0.00012991,2]
[323495399,1714051854404,-3341.3881129,0.00012991,2]
[323495400,1714051854413,-3844.9444665,0.00012991,2]
[323495401,1714051854423,-500.0,0.00012991,2]
[323495402,1714051854432,-500.0,0.00012991,2]
[323495403,1714051854441,-500.0,0.00012991,2]
[323495404,1714051854449,-500.0,0.00012991,2]
[323495405,1714051854459,-500.0,0.00012991,2]
[323495406,1714051854468,-5374.44,0.00012991,2]
[323495407,1714051854477,-886.8,0.00012991,2]
[323495408,1714051854487,-500.0,0.00012991,2]
[323495409,1714051854499,-1040.26,0.00012992,2]
[323495410,1714051854509,-869.87,0.00012992,2]
[323495411,1714051854518,-1414.99,0.00012992,2]
[323495412,1714051854527,-4000.32,0.00012992,2]
[323495413,1714051854537,-1633.73,0.00012992,2]
[323495414,1714051854546,-500.0,0.00012992,2]
[323495415,1714051854555,-1291.85,0.00012992,2]
[323495416,1714051854568,-500.0,0.00012992,2]
[323495417,1714051854579,-500.0,0.00012992,2]
[323495418,1714051854588,-500.0,0.00012992,2]
[323495419,1714051854597,-24356.34,0.00012992,2]
[323495420,1714051854607,-500.0,0.00012992,2]
[323495421,1714051854617,-500.0,0.00012992,2]
[323495422,1714051854626,-500.0,0.00012992,2]
[323495423,1714051854636,-500.0,0.00012992,2]
[323495424,1714051854646,-500.0,0.00012992,2]
[323495425,1714051854655,-500.0,0.00012992,2]
[323495426,1714051854665,-500.0,0.00012992,2]
[323495427,1714051854674,-500.0,0.00012992,2]
[323495428,1714051854683,-500.0,0.00012993,2]
[323495429,1714051854692,-3488.85843127,0.00012995,2]
[323495430,1714051854701,-293.47537662,0.00012995,2]
[323495431,1714051854711,-500.0,0.00012997,2]
[323495432,1714051854720,-500.0,0.00012997,2]
[323495433,1714051854730,-500.0,0.00012997,2]
[323495434,1714051854739,-500.0,0.00012997,2]
[323495435,1714051854754,-500.0,0.00012997,2]
[323495436,1714051854764,-500.0,0.00012997,2]
[323495437,1714051854774,-508890.91153862,0.00012998,2]
[323495438,1714051854791,-3049.76858233,0.00012998,2]
[323495439,1714051854813,-748.17300973,0.00012998,2]
[323495440,1714051854824,-63043.0,0.00012998,2]
[323495441,1714051854835,-6300.0,0.00012998,2]
[323495442,1714051854846,-6284.90000001,0.00012998,2]
[323495443,1714051854862,-3643.88,0.00012998,2]
[323495444,1714051854873,-32972.80197232,0.00012998,2]
[323495445,1714051854882,-151.0,0.00012998,2]
[323495446,1714051854892,-233.425575,0.00012998,2]
[323495447,1714051854901,-233.425575,0.00012998,2]
[323495448,1714051854910,-151.0,0.00012998,2]
[323495449,1714051854919,-500.0,0.00012999,2]
[323495450,1714051854928,-500.0,0.00012999,2]
[323495451,1714051854937,-500.0,0.00012999,2]
[323495452,1714051854946,-628.73017738,0.00012999,2]
[323495453,1714051854955,-500.0,0.00012999,2]
[323495454,1714051854963,-500.0,0.00012999,2]
[323495455,1714051854972,-500.0,0.00012999,2]
[323495456,1714051854982,-500.0,0.00012999,2]
[323495457,1714051854991,-221356.92120598,0.00013,2]
[323495458,1714051855275,-178.65665428,0.0001225,2]
[323495459,1714051855285,-660.945,0.00012813,2]
[323495460,1714051855295,-406.11822754,0.000129,2]
[323495461,1714051855305,-2501.28327362,0.00013,2]
[323495462,1714051855328,-500.0,0.00011894,2]
[323495463,1714051855337,-138.19340764,0.00013,2]
[323495464,1714051855348,-20973.3331236,0.00013,2]
[323495465,1714051855359,-301.38385413,0.00013,2]
[323495466,1714051855369,-631.54,0.00013,2]
[323495467,1714051855380,-2847.59268996,0.00013,2]
[323495468,1714051855391,-104698.25940151,0.00013,2]
[323495469,1714051855401,-862.3800003,0.00013,2]
[323495470,1714051855412,-3279.59428054,0.00013,2]
[323495471,1714051855423,-555.61130365,0.00013,2]
[323495472,1714051855439,-286.93626806,0.00013,2]
[323495473,1714051855457,-6250.06005229,0.00013,2]
[323495474,1714051855475,-14260.08060823,0.00013,2]
[323495475,1714051855486,-1476.71159177,0.00013,2]
[323495476,1714051855499,-630.63,0.00013,2]
[323495477,1714051855510,-2651.70007656,0.00013,2]
[323495478,1714051855521,-728.79434185,0.00013,2]
[323495479,1714051855532,-771.69283061,0.00013,2]
[323495480,1714051855556,-500.0,0.00012168,2]
[323495481,1714051855566,-6036.72520002,0.00013,2]
[323495482,1714051855579,-25390.47037221,0.00013,2]
[323495483,1714051855986,-500.0,0.00011894,2]
[323495484,1714051855999,-500.0,0.00011894,2]
[323495485,1714051856009,-500.0,0.00011896,2]
[323495486,1714051856018,-500.0,0.00011896,2]
[323495487,1714051856028,-500.0,0.00011896,2]
[323495488,1714051856038,-10000.0,0.00012069,2]
[323495489,1714051856047,-500.0,0.0001217,2]
[323495490,1714051856057,-500.0,0.0001217,2]
[323495491,1714051856067,-500.0,0.00012442,2]
[323495492,1714051856077,-500.0,0.00012444,2]
[323495493,1714051856087,-500.0,0.00012444,2]
[323495494,1714051856096,-500.0,0.00012718,2]
[323495495,1714051856105,-500.0,0.00012718,2]
[323495496,1714051856114,-1256.0,0.00012813,2]
[323495497,1714051856124,-502.67155838,0.00012992,2]
[323495498,1714051856133,-13685.32844164,0.00013,2]
[323495499,1714051856145,-3569.41012625,0.00013,2]
[323495500,1714051856164,-500.0,0.00012168,2]
[323495501,1714051856174,-320.75071914,0.00013,2]
[323495502,1714051856186,-2010.42471889,0.00013,2]
[323495503,1714051856197,-24458.20640011,0.00013,2]
[323495504,1714051856207,-349.41458126,0.00013,2]
[323495505,1714051856218,-307476.12754082,0.00013,2]
[323495506,1714051856228,-20632.99087878,0.00013,2]
[323495507,1714051856309,-743.74511592,0.00013,2]
[323495508,1714051856320,-17023.90553088,0.00013,2]
[323495509,1714051856332,-306.76,0.00013,2]
[323495510,1714051856343,-372.93853237,0.00013,2]
[323495511,1714051856355,-99431.52523999,0.00013,2]
[323495512,1714051856366,-2647.59252862,0.00013,2]
[323495513,1714051856384,-500.0,0.00012992,2]
[323495514,1714051856394,-95635.674041,0.00013,2]
[323495515,1714051856405,-96755.12495136,0.00013,2]
[323495516,1714051856416,-2642.24230972,0.00013,2]
[323495517,1714051856428,-3966.14008472,0.00013,2]
[323495518,1714051856494,-3152.73547743,0.00013,2]
[323495519,1714051856514,-500.0,0.00011895,2]
[323495520,1714051856523,-688.35,0.00013,2]
[323495521,1714051856534,-5072.99547554,0.00013,2]
[323495522,1714051856545,-9030.62987537,0.00013,2]
[323495523,1714051856557,-4397.82,0.00013,2]
[323495524,1714052426264,-1780.0018805,9.394e-05,2]
[323495525,1714052426286,-258.68,9.395e-05,2]
[323495526,1714052426307,-650.22,0.00011313,2]
[323495527,1714052426330,-190.69,0.00011347,2]
[323495528,1714052426352,-190.69,0.00011403,2]
[323495529,1714052426373,-200.0,0.00011427,2]
[323495530,1714052426395,-258.68,0.00011659,2]
[323495531,1714052426416,-471.0381195,0.00011689,2]
[323495532,1714052427164,-4000.0,0.00011689,2]
[323495533,1714052427598,-746.18783254,0.00011689,2]
[323495534,1714052427618,-161.11918863,0.00011691,2]
[323495535,1714052427641,-3021.7237,0.00011692,2]
[323495536,1714052427661,-70.96927883,0.00011794,2]
[323495537,1714052428084,-4000.0,0.00011794,2]
[323495538,1714052428629,-4000.0,0.00011794,2]
[323495539,1714052429105,-4000.0,0.00011794,2]
[323495540,1714052429624,-4000.0,0.00011794,2]
[323495541,1714052430103,-4000.0,0.00011794,2]
[323495542,1714052430642,-395.24012117,0.00011794,2]
[323495543,1714052430663,-3604.75987883,0.00011794,2]
[323495544,1714052431204,-4000.0,0.00011794,2]
[323495549,1714052450641,-3448.66508328,0.00011794,2]
[323495551,1714052471820,193.42,0.00011463,2]
[323495552,1714052497478,357.91491672,0.00011794,2]
[323495553,1714052497501,2113.08508328,0.00011794,2]
[323495554,1714052498862,1886.91491672,0.00011794,2]
[323495555,1714052498883,3888.81508328,0.00011794,2]
[323495556,1714052504243,-2500.0,0.00011795,2]
[323495558,1714052510946,-4000.0,0.00011892,2]
[323495559,1714052518229,-330.90690104,0.00011892,2]
[323495560,1714052518250,-157.40461354,0.00011892,2]
[323495561,1714052518272,-155.0,0.00011892,2]
[323495562,1714052518294,-192.77526155,0.00011892,2]
[323495563,1714052518313,-1249.7452849,0.00011893,2]
[323495564,1714052518336,-500.0,0.00011894,2]
[323495565,1714052518356,-500.0,0.00011894,2]
[323495566,1714052518375,-500.0,0.00011894,2]
[323495567,1714052518395,-414.16793897,0.00011894,2]
[323495568,1714052525880,-150.0,0.00011893,2]
[323495569,1714052525902,-150.0,0.00011893,2]
[323495570,1714052525924,-203.77005708,0.00011894,2]
[323495571,1714052525946,-500.0,0.00011894,2]
[323495572,1714052525969,-500.0,0.00011894,2]
[323495573,1714052525991,-500.0,0.00011894,2]
[323495574,1714052526013,-500.0,0.00011894,2]
[323495575,1714052526034,-500.0,0.00011894,2]
[323495576,1714052526055,-500.0,0.00011894,2]
[323495577,1714052526076,-496.22994292,0.00011894,2]
[323495578,1714052526726,500.0,0.00011795,2]
[323495579,1714052532312,-3.77005708,0.00011894,2]
[323495580,1714052532334,-500.0,0.00011894,2]
[323495581,1714052532356,-500.0,0.00011894,2]
[323495582,1714052532376,-500.0,0.00011894,2]
[323495583,1714052532397,-500.0,0.00011894,2]
[323495584,1714052532418,-182.93,0.00011894,2]
[323495585,1714052532439,-500.0,0.00011894,2]
[323495586,1714052532465,-500.0,0.00011894,2]
[323495587,1714052532489,-500.0,0.00011894,2]
[323495588,1714052532509,-313.29994292,0.00011894,2]
[323495589,1714052539323,-155.0,0.00011893,2]
[323495590,1714052539343,-186.70005708,0.00011894,2]
[323495591,1714052539364,-500.0,0.00011894,2]
[323495592,1714052539385,-158.29994292,0.00011894,2]
[323495593,1714052840279,-155.0,9.188e-05,2]
[323495594,1714052840299,-232.81,9.189e-05,2]
[323495595,1714052840321,-173.67,0.00011168,2]
[323495596,1714052840341,-232.81,0.00011453,2]
[323495597,1714052840360,-4584.3685979,0.00011588,2]
[323495598,1714052840381,-35.22833928,0.00011589,2]
[323495599,1714052848110,-114.77166072,0.00011589,2]
[323495600,1714052848129,-150.0,0.00011589,2]
[323495601,1714052848150,-22.62081343,0.00011718,2]
[323495606,1714053032433,-1240.78981057,0.0001114,2]
[323495612,1714053032487,-626.85191041,0.0001114,2]
[323495619,1714053032618,-5766.96427622,0.0001114,2]
[323495620,1714053032631,-11810.18646947,0.0001114,2]
[323495621,1714053032640,-19696.09,0.00011141,2]
[323495622,1714053032649,-150.0,0.00011191,2]
[323495623,1714053032658,-127.37918657,0.00011718,2]
[323495624,1714053032667,-288.34603203,0.00011718,2]
[323495625,1714053032675,-169.68988242,0.00011718,2]
[323495626,1714053032685,-490.5858,0.00011791,2]
[323495627,1714053032696,-1000.0,0.00011794,2]
[323495628,1714053032705,-1281.97558447,0.00011794,2]
[323495629,1714053032718,-450.42331553,0.00011794,2]
[323495630,1714053032727,-150.0,0.00011847,2]
[323495631,1714053032737,-150.0,0.00011863,2]
[323495632,1714053032747,-2371.0111071,0.00011881,2]
[323495633,1714053032757,-1000.0,0.00011891,2]
[323495634,1714053032766,-150.0,0.00011891,2]
[323495635,1714053032775,-1329.53805407,0.00011891,2]
[323495647,1714053033267,-1814.98194593,0.00011891,2]
[323495648,1714053033277,-55635.90849436,0.00011892,2]
[323495649,1714053033286,-3075.58206305,0.00011892,2]
[323495650,1714053033296,-261.85017646,0.00011892,2]
[323495651,1714053033306,-3011.72366215,0.00011892,2]
[323495652,1714053033315,-509.10572228,0.00011892,2]
[323495653,1714053033326,-155.25533383,0.00011892,2]
[323495654,1714053033335,-268.35852299,0.00011892,2]
[323495655,1714053033344,-782.66617723,0.00011893,2]
[323495656,1714053033355,-155.22478226,0.00011893,2]
[323495657,1714053033364,-409.15313021,0.00011893,2]
[323495658,1714053033373,-500.0,0.00011893,2]
[323495659,1714053033383,-495.65707416,0.00011893,2]
[323495660,1714053033393,-500.0,0.00011893,2]
[323495661,1714053033401,-500.0,0.00011893,2]
[323495662,1714053033411,-500.0,0.00011893,2]
[323495663,1714053033420,-500.0,0.00011893,2]
[323495664,1714053033429,-400.0,0.00011893,2]
[323495665,1714053033439,-500.0,0.00011893,2]
[323495666,1714053033450,-500.0,0.00011893,2]
[323495667,1714053033460,-500.0,0.00011893,2]
[323495668,1714053033470,-500.0,0.00011893,2]
[323495669,1714053033480,-500.0,0.00011893,2]
[323495670,1714053033489,-500.0,0.00011893,2]
[323495671,1714053033499,-500.0,0.00011893,2]
[323495672,1714053033509,-500.0,0.00011893,2]
[323495673,1714053033518,-500.0,0.00011893,2]
[323495674,1714053033527,-500.0,0.00011893,2]
[323495675,1714053033537,-500.0,0.00011893,2]
[323495676,1714053033546,-500.0,0.00011893,2]
[323495677,1714053033556,-564.55010699,0.00011893,2]
[323495678,1714053033566,-500.0,0.00011893,2]
[323495679,1714053033575,-500.0,0.00011893,2]
[323495680,1714053033585,-500.0,0.00011893,2]
[323495681,1714053033594,-500.0,0.00011893,2]
[323495682,1714053033606,-500.0,0.00011893,2]
[323495683,1714053033615,-500.0,0.00011893,2]
[323495684,1714053033624,-408.76686462,0.00011893,2]
[323495685,1714053033633,-500.0,0.00011893,2]
[323495686,1714053033642,-500.0,0.00011893,2]
[323495687,1714053033650,-500.0,0.00011893,2]
[323495688,1714053033659,-500.0,0.00011893,2]
[323495689,1714053033668,-500.0,0.00011893,2]
[323495690,1714053033677,-500.0,0.00011893,2]
[323495691,1714053033687,-500.0,0.00011893,2]
[323495692,1714053033696,-500.0,0.00011893,2]
[323495693,1714053033705,-500.0,0.00011893,2]
[323495694,1714053033714,-557.25,0.00011893,2]
[323495695,1714053033724,-500.0,0.00011893,2]
[323495696,1714053033733,-500.0,0.00011893,2]
[323495697,1714053033743,-500.0,0.00011893,2]
[323495698,1714053033752,-500.0,0.00011893,2]
[323495699,1714053033761,-500.0,0.00011893,2]
[323495700,1714053033771,-500.0,0.00011893,2]
[323495701,1714053033780,-500.0,0.00011893,2]
[323495702,1714053033790,-500.0,0.00011893,2]
[323495703,1714053033799,-500.0,0.00011893,2]
[323495704,1714053033808,-500.0,0.00011893,2]
[323495705,1714053033818,-500.0,0.00011893,2]
[323495706,1714053033827,-500.0,0.00011893,2]
[323495707,1714053033836,-500.0,0.00011893,2]
[323495708,1714053033845,-500.0,0.00011893,2]
[323495709,1714053033856,-520.62,0.00011893,2]
[323495710,1714053033865,-500.0,0.00011893,2]
[323495711,1714053033874,-500.0,0.00011893,2]
[323495712,1714053033884,-221.54402969,0.00011893,2]
[323495713,1714053033895,-500.0,0.00011893,2]
[323495714,1714053033905,-500.0,0.00011893,2]
[323495715,1714053033915,-602.03,0.00011893,2]
[323495716,1714053033925,-500.0,0.00011893,2]
[323495717,1714053033934,-500.0,0.00011893,2]
[323495718,1714053033944,-500.0,0.00011893,2]
[323495719,1714053033954,-500.0,0.00011893,2]
[323495720,1714053033965,-500.0,0.00011893,2]
[323495721,1714053033974,-500.0,0.00011893,2]
[323495722,1714053033983,-500.0,0.00011893,2]
[323495723,1714053033994,-500.0,0.00011893,2]
[323495724,1714053034003,-500.0,0.00011893,2]
[323495725,1714053034013,-500.0,0.00011893,2]
[323495726,1714053034022,-500.0,0.00011893,2]
[323495727,1714053034033,-500.0,0.00011893,2]
[323495728,1714053034043,-500.0,0.00011893,2]
[323495729,1714053034052,-500.0,0.00011893,2]
[323495730,1714053034062,-500.0,0.00011893,2]
[323495731,1714053034073,-500.0,0.00011893,2]
[323495732,1714053034082,-500.0,0.00011893,2]
[323495733,1714053034091,-500.0,0.00011893,2]
[323495734,1714053034100,-500.0,0.00011893,2]
[323495735,1714053034112,-557.3474533,0.00011893,2]
[323495736,1714053034123,-500.0,0.00011893,2]
[323495737,1714053034132,-500.0,0.00011893,2]
[323495738,1714053034141,-500.0,0.00011893,2]
[323495739,1714053034151,-308.64,0.00011893,2]
[323495740,1714053034160,-500.0,0.00011893,2]
[323495741,1714053034169,-500.0,0.00011893,2]
[323495742,1714053034178,-500.0,0.00011893,2]
[323495743,1714053034187,-500.0,0.00011893,2]
[323495744,1714053034196,-500.0,0.00011893,2]
[323495745,1714053034206,-500.0,0.00011893,2]
[323495746,1714053034215,-500.0,0.00011893,2]
[323495747,1714053034224,-500.0,0.00011893,2]
[323495748,1714053034233,-481.07698547,0.00011893,2]
[323495749,1714053034242,-499.06951869,0.00011893,2]
[323495750,1714053034251,-545.57,0.00011893,2]
[323495751,1714053034261,-500.0,0.00011893,2]
[323495752,1714053034270,-612.7,0.00011893,2]
[323495753,1714053034279,-573.07237551,0.00011893,2]
[323495754,1714053034288,-500.0,0.00011893,2]
[323495755,1714053034297,-500.0,0.00011893,2]
[323495756,1714053034306,-500.0,0.00011893,2]
[323495757,1714053034315,-500.0,0.00011893,2]
[323495758,1714053034324,-288.26754978,0.00011893,2]
[323495759,1714053034333,-500.0,0.00011893,2]
[323495760,1714053034342,-500.0,0.00011893,2]
[323495761,1714053034352,-500.0,0.00011893,2]
[323495762,1714053034363,-500.0,0.00011893,2]
[323495763,1714053034373,-500.0,0.00011893,2]
[323495764,1714053034382,-500.0,0.00011893,2]
[323495765,1714053034392,-1233.35,0.00011893,2]
[323495766,1714053034402,-500.0,0.00011893,2]
[323495767,1714053034411,-500.0,0.00011893,2]
[323495768,1714053034421,-500.0,0.00011893,2]
[323495769,1714053034430,-575.58,0.00011893,2]
[323495770,1714053034440,-500.0,0.00011893,2]
[323495771,1714053034450,-500.0,0.00011893,2]
[323495772,1714053034459,-500.0,0.00011893,2]
[323495773,1714053034468,-500.0,0.00011893,2]
[323495774,1714053034478,-601.92,0.00011893,2]
[323495775,1714053034487,-500.0,0.00011893,2]
[323495776,1714053034497,-196.12,0.00011893,2]
[323495777,1714053034506,-312.22,0.00011893,2]
[323495778,1714053034516,-500.0,0.00011893,2]
[323495779,1714053034525,-500.0,0.00011893,2]
[323495780,1714053034534,-500.0,0.00011893,2]
[323495781,1714053034543,-2624.0,0.00011893,2]
[323495782,1714053034553,-500.0,0.00011893,2]
[323495783,1714053034562,-500.0,0.00011893,2]
[323495784,1714053034571,-500.0,0.00011893,2]
[323495785,1714053034580,-500.0,0.00011893,2]
[323495786,1714053034589,-7450.08,0.00011893,2]
[323495787,1714053034598,-531.93,0.00011893,2]
[323495788,1714053034609,-504.42140878,0.00011893,2]
[323495789,1714053034618,-500.0,0.00011893,2]
[323495790,1714053034627,-500.0,0.00011893,2]
[323495791,1714053034636,-500.0,0.00011893,2]
[323495792,1714053034645,-500.0,0.00011893,2]
[323495793,1714053034654,-500.0,0.00011893,2]
[323495794,1714053034663,-500.0,0.00011893,2]
[323495795,1714053034672,-4099.22,0.00011893,2]
[323495796,1714053034682,-609.81,0.00011893,2]
[323495797,1714053034691,-500.0,0.00011893,2]
[323495798,1714053034701,-500.0,0.00011893,2]
[323495799,1714053034710,-347.9750764,0.00011893,2]
[323495800,1714053034720,-518.33,0.00011893,2]
[323495801,1714053034729,-500.0,0.00011893,2]
[323495802,1714053034738,-500.0,0.00011893,2]
[323495803,1714053034747,-500.0,0.00011893,2]
[323495804,1714053034757,-500.0,0.00011893,2]
[323495805,1714053034767,-1892.41,0.00011893,2]
[323495806,1714053034777,-500.0,0.00011893,2]
[323495807,1714053034787,-500.0,0.00011893,2]
[323495808,1714053034796,-500.0,0.00011893,2]